bitfinex/quotes_BTCUSD_20251208
["timestamp","ask_amount","ask_price","bid_price","bid_amount"]
[1765192366276,0.001,92154.0,92153.0,0.21703037]
[1765192391520,0.001,92154.0,92153.0,0.25513037]
[1765192392347,0.001,92154.0,92153.0,0.26598]
[1765192394439,0.001,92154.0,92153.0,0.32440998]
[1765192395233,0.001,92154.0,92153.0,0.24315]
[1765192395621,0.001,92154.0,92153.0,0.26619]
[1765192398098,0.001,92154.0,92153.0,0.24315]
[1765192398336,0.001,92154.0,92153.0,0.01084963]
[1765192398565,0.27964587,92154.0,92151.0,0.22788663]
[1765192398770,0.0151,92153.0,92151.0,0.22788663]
[1765192398972,0.02432,92153.0,92151.0,0.22788663]
[1765192399121,0.02432,92153.0,92148.0,0.22789284]
[1765192399122,0.21703979,92149.0,92148.0,0.05842998]
[1765192399475,0.21703979,92149.0,92141.0,0.21705714]
[1765192399476,0.02219599,92145.0,92141.0,0.21705714]
[1765192399585,0.01129,92144.0,92142.0,0.04982091]
[1765192399786,0.01129,92144.0,92143.0,0.21705387]
[1765192400105,0.07638221,92149.0,92148.0,0.21704214]
[1765192400106,0.1203146,92149.0,92148.0,0.21704214]
[1765192400502,0.1637346,92149.0,92148.0,0.21704214]
[1765192400711,0.1597346,92149.0,92148.0,0.21704214]
[1765192401147,0.21704214,92148.0,92146.0,0.02922672]
[1765192401383,0.0151,92147.0,92145.0,0.02922672]
[1765192401583,0.03942,92147.0,92145.0,0.24627366]
[1765192401776,0.03942,92147.0,92146.0,0.21704686]
[1765192402780,0.04042,92147.0,92146.0,0.21704686]
[1765192402986,0.04042,92147.0,92145.0,0.02922672]
[1765192403187,0.25646686,92146.0,92145.0,0.02922672]
[1765192403398,0.03942,92146.0,92144.0,0.2462777]
[1765192403571,0.03942,92146.0,92144.0,0.02922672]
[1765192403572,0.24136921,92145.0,92144.0,0.02922672]
[1765192403771,0.01085281,92142.0,92139.0,0.01085316]
[1765192403977,0.22790661,92143.0,92139.0,0.01096999]
[1765192404207,0.22790661,92143.0,92142.0,0.02919768]
[1765192404414,0.21705392,92143.0,92142.0,0.02919768]
[1765192404624,0.01129,92144.0,92142.0,0.02919768]
[1765192404844,0.21705392,92143.0,92142.0,0.02919768]
[1765192405432,0.21705392,92143.0,92141.0,0.02919768]
[1765192405947,0.21805628,92142.0,92141.0,0.02919768]
[1765192406374,0.21705628,92142.0,92141.0,0.02919768]
[1765192406578,0.21705874,92141.0,92139.0,0.04016767]
[1765192406697,0.21706099,92140.0,92139.0,0.02931451]
[1765192406902,0.21706059,92141.0,92139.0,0.02931451]
[1765192407687,0.22790927,92142.0,92140.0,0.21706099]
[1765192407842,0.22790927,92142.0,92139.0,0.02931451]
[1765192408173,0.00161286,92143.0,92140.0,0.22791391]
[1765192408381,0.001,92142.0,92141.0,0.21705633]
[1765192408872,0.00161286,92143.0,92142.0,0.21705628]
[1765192410126,0.00361286,92143.0,92142.0,0.21705628]
[1765192410402,0.00361286,92143.0,92141.0,0.01158]
[1765192410988,0.21706099,92140.0,92139.0,0.00011683]
[1765192411549,0.21706058,92141.0,92139.0,0.00011683]
[1765192411881,0.22952131,92143.0,92139.0,0.21717965]
[1765192412128,0.001,92140.0,92139.0,0.22803281]
[1765192412562,0.001,92140.0,92139.0,0.24321281]
[1765192412701,0.00161286,92143.0,92142.0,0.21705628]
[1765192413058,0.21866788,92143.0,92140.0,0.22791339]
[1765192413187,0.00161286,92143.0,92141.0,0.21705825]
[1765192413382,0.21966711,92143.0,92140.0,0.22791339]
[1765192414890,0.24498711,92143.0,92140.0,0.22791339]
[1765192415293,0.24398711,92143.0,92140.0,0.22791339]
[1765192415591,0.2170581,92142.0,92139.0,0.22802893]
[1765192416601,0.2180581,92142.0,92139.0,0.22802893]
[1765192416806,0.22991091,92142.0,92139.0,0.22802893]
[1765192417956,0.002,92142.0,92139.0,0.22803327]
[1765192418953,0.002,92142.0,92140.0,0.217059]
[1765192419454,0.002,92142.0,92141.0,0.21705863]
[1765192419675,0.002,92142.0,92140.0,0.21706013]
[1765192419874,0.001,92142.0,92140.0,0.21706013]
[1765192420272,0.001,92142.0,92140.0,0.21706032]
[1765192420273,0.21805733,92142.0,92140.0,0.21706032]
[1765192420472,0.001,92142.0,92141.0,0.21705863]
[1765192420826,0.001,92142.0,92140.0,0.21706032]
[1765192421030,0.21866866,92143.0,92140.0,0.21706032]
[1765192421434,0.001,92142.0,92140.0,0.21706032]
[1765192421763,0.002,92142.0,92140.0,0.21706032]
[1765192422081,0.001,92142.0,92141.0,0.21705863]
[1765192422794,0.00161286,92143.0,92141.0,0.21705863]
[1765192423183,0.22890909,92142.0,92139.0,0.22803111]
[1765192423584,0.22890909,92142.0,92139.0,0.01096999]
[1765192423988,0.22890909,92142.0,92139.0,0.22803263]
[1765192424207,0.22890909,92142.0,92139.0,0.01096999]
[1765192424408,0.21706099,92140.0,92139.0,0.02931451]
[1765192425294,0.21706099,92140.0,92139.0,0.00011683]
[1765192425676,0.001,92140.0,92139.0,0.00011683]
[1765192426026,0.21906099,92140.0,92139.0,0.00011683]
[1765192429287,0.21906099,92140.0,92139.0,0.03908493]
[1765192433083,0.002,92140.0,92139.0,0.03908493]
[1765192433284,0.002,92140.0,92139.0,0.21718017]
[1765192438796,0.002,92140.0,92139.0,0.25793017]
[1765192442088,0.002,92140.0,92139.0,0.27505017]
[1765192442435,0.002,92140.0,92139.0,0.63109463]
[1765192442635,0.002,92140.0,92139.0,0.70900491]
[1765192443058,0.002,92140.0,92139.0,0.63109463]
[1765192443755,0.001,92140.0,92139.0,0.63109463]
[1765192443917,0.21698369,92173.0,92157.0,0.21702095]
[1765192444239,0.01084939,92171.0,92157.0,0.25527095]
[1765192444384,0.01084939,92171.0,92157.0,0.27813095]
[1765192444589,0.01084928,92172.0,92157.0,0.27813095]
[1765192445090,0.01084951,92170.0,92157.0,0.27813095]
[1765192445519,0.01084939,92171.0,92157.0,0.27913095]
[1765192446400,0.01084928,92172.0,92157.0,0.27913095]
[1765192446401,0.01084928,92172.0,92157.0,0.31797865]
[1765192447402,0.01084916,92173.0,92157.0,0.27913095]
[1765192448361,0.01084928,92172.0,92157.0,0.27913095]
[1765192449321,0.01084951,92170.0,92157.0,0.27913095]
[1765192449524,0.22783684,92172.0,92157.0,0.27913095]
[1765192450441,0.01084928,92172.0,92157.0,0.27913095]
[1765192451039,0.22783497,92172.0,92157.0,0.27913095]
[1765192452507,0.01084928,92172.0,92157.0,0.27913095]
[1765192455638,0.21699709,92168.0,92157.0,0.27913095]
[1765192455820,0.21699649,92168.0,92157.0,0.27913095]
[1765192455975,0.21699284,92169.0,92157.0,0.27913095]
[1765192456174,0.01179,92163.0,92157.0,0.25290881]
[1765192456378,0.01085022,92164.0,92157.0,0.31000881]
[1765192456590,0.01084998,92166.0,92157.0,0.31000881]
[1765192456786,0.01085022,92164.0,92157.0,0.28655881]
[1765192457111,0.01085034,92163.0,92157.0,0.31000881]
[1765192457311,0.01085022,92164.0,92157.0,0.30900881]
[1765192457648,0.2278544,92166.0,92157.0,0.30900881]
[1765192457833,0.0108501,92165.0,92157.0,0.30900881]
[1765192458193,0.01084998,92166.0,92157.0,0.30900881]
[1765192458394,0.01085022,92164.0,92157.0,0.30900881]
[1765192458849,0.22785031,92166.0,92157.0,0.30900881]
[1765192459314,0.0108501,92165.0,92157.0,0.30900881]
[1765192459493,0.01085022,92164.0,92157.0,0.30900881]
[1765192459782,0.02263987,92167.0,92157.0,0.30900881]
[1765192459990,0.23963957,92167.0,92157.0,0.30900881]
[1765192460336,0.01179,92167.0,92157.0,0.30900881]
[1765192460562,0.0119,92174.0,92157.0,0.30900881]
[1765192460767,0.0119,92174.0,92157.0,0.26279095]
[1765192460969,0.0119,92174.0,92157.0,0.27991095]
[1765192461187,0.0119,92174.0,92157.0,0.30210295]
[1765192461544,0.0119,92174.0,92157.0,0.27991095]
[1765192461749,0.02274904,92174.0,92157.0,0.27991095]
[1765192461947,0.06614023,92174.0,92157.0,0.27991095]
[1765192462150,0.06614023,92174.0,92157.0,0.28091095]
[1765192462389,0.06614023,92174.0,92157.0,0.28074938]
[1765192462390,0.0119,92174.0,92157.0,0.28074938]
[1765192462803,0.0119,92174.0,92157.0,0.28174938]
[1765192463010,0.0119,92174.0,92157.0,0.28074938]
[1765192463397,0.0119,92174.0,92157.0,0.28274938]
[1765192464430,0.01084916,92173.0,92157.0,0.28274938]
[1765192464752,0.0119,92174.0,92157.0,0.28274938]
[1765192465207,0.02274904,92174.0,92157.0,0.28274938]
[1765192465424,0.01084916,92173.0,92157.0,0.32159708]
[1765192465804,0.0119,92174.0,92157.0,0.32159708]
[1765192466229,0.05424023,92175.0,92157.0,0.32159708]
[1765192466542,0.22794599,92180.0,92157.0,0.32159708]
[1765192466718,0.00012879,92180.0,92157.0,0.34378908]
[1765192466924,0.21709597,92180.0,92157.0,0.30494138]
[1765192467290,0.01084857,92178.0,92157.0,0.30494138]
[1765192467495,0.21696955,92179.0,92157.0,0.30494138]
[1765192467695,0.21696955,92179.0,92157.0,0.3375184]
[1765192468250,0.21709597,92180.0,92157.0,0.3375184]
[1765192468746,0.01084857,92178.0,92157.0,0.3375184]
[1765192469050,0.01084881,92176.0,92157.0,0.3375184]
[1765192469249,0.227826,92176.0,92157.0,0.3375184]
[1765192469413,0.22782555,92176.0,92157.0,0.3375184]
[1765192469796,0.01084892,92175.0,92157.0,0.3375184]
[1765192469994,0.22782555,92176.0,92157.0,0.3375184]
[1765192470194,0.01084869,92177.0,92157.0,0.3375184]
[1765192470431,0.22782226,92178.0,92157.0,0.3375184]
[1765192470856,0.01084881,92176.0,92157.0,0.3375184]
[1765192471415,0.01084869,92177.0,92157.0,0.3375184]
[1765192471702,0.01084857,92178.0,92157.0,0.3375184]
[1765192472057,0.01084869,92177.0,92157.0,0.3375184]
[1765192472253,0.01084881,92176.0,92157.0,0.3375184]
[1765192472441,0.01084869,92177.0,92157.0,0.3375184]
[1765192472931,0.02101323,92178.0,92157.0,0.3375184]
[1765192473338,0.23798548,92178.0,92157.0,0.3375184]
[1765192473562,0.01016466,92177.0,92157.0,0.3375184]
[1765192474109,0.02101335,92177.0,92157.0,0.3375184]
[1765192474319,0.23798762,92177.0,92157.0,0.3375184]
[1765192474516,0.02101347,92176.0,92157.0,0.3375184]
[1765192474743,0.01016466,92176.0,92157.0,0.3375184]
[1765192474975,0.01016466,92177.0,92157.0,0.3375184]
[1765192475229,0.01016466,92178.0,92157.0,0.3375184]
[1765192476800,0.00421,92179.0,92157.0,0.3375184]
[1765192477809,0.22117935,92179.0,92157.0,0.3375184]
[1765192478054,0.01016466,92178.0,92157.0,0.3375184]
[1765192478254,0.01029345,92180.0,92157.0,0.3375184]
[1765192478912,0.01029345,92180.0,92157.0,0.6605184]
[1765192478913,0.00012879,92180.0,92157.0,0.6605184]
[1765192483736,0.00012879,92180.0,92157.0,0.6595184]
[1765192484110,0.00012879,92180.0,92157.0,0.6585184]
[1765192484746,0.00012879,92180.0,92157.0,0.6615184]
[1765192495854,0.00012879,92180.0,92157.0,0.6443984]
[1765192496082,0.02338,92179.0,92157.0,0.6393264]
[1765192496614,0.00012879,92180.0,92157.0,0.6393264]
[1765192496824,0.00012879,92180.0,92157.0,0.6615184]
[1765192500719,0.02289,92179.0,92157.0,0.6443984]
[1765192500937,0.02289,92179.0,92157.0,0.6615184]
[1765192501206,0.23986143,92179.0,92157.0,0.6615184]
[1765192501416,0.02289,92179.0,92157.0,0.6615184]
[1765192502086,0.02289,92179.0,92157.0,0.6222064]
[1765192502405,0.01236,92175.0,92157.0,0.6615184]
[1765192503174,0.01236,92175.0,92157.0,0.6222064]
[1765192503422,0.01236,92175.0,92157.0,0.6393264]
[1765192504784,0.00012879,92180.0,92157.0,0.6615184]
[1765192505905,0.00012879,92180.0,92157.0,0.72404139]
[1765192506902,0.00012879,92180.0,92179.0,0.21696915]
[1765192507124,0.00012879,92180.0,92179.0,0.27197115]
[1765192507322,0.00012879,92180.0,92179.0,0.29541115]
[1765192507512,0.00012879,92180.0,92179.0,0.30777115]
[1765192507710,0.00012879,92180.0,92179.0,0.63077115]
[1765192508134,0.00024552,92180.0,92179.0,0.63077115]
[1765192508354,0.00124552,92180.0,92179.0,0.63077115]
[1765192508838,0.00024552,92180.0,92179.0,0.63077115]
[1765192510214,0.00024552,92180.0,92179.0,0.63177115]
[1765192510952,0.00024552,92180.0,92179.0,0.63277115]
[1765192511818,0.00024552,92180.0,92179.0,0.61057915]
[1765192512408,0.00024552,92180.0,92179.0,0.63277115]
[1765192512716,0.00088179,92180.0,92179.0,0.71055884]
[1765192513293,0.00088179,92180.0,92179.0,0.63277115]
[1765192513850,0.00088179,92180.0,92179.0,0.71055884]
[1765192514028,0.00088179,92180.0,92179.0,0.63277115]
[1765192516027,0.00088179,92180.0,92179.0,0.71055884]
[1765192516229,0.00088179,92180.0,92179.0,0.63277115]
[1765192517316,0.00088179,92180.0,92179.0,0.71055884]
[1765192518410,0.00088179,92180.0,92179.0,0.63277115]
[1765192531385,0.00088179,92180.0,92179.0,5.63277115]
[1765192533800,0.00054802,92183.0,92182.0,0.56215409]
[1765192534003,0.00054802,92183.0,92182.0,5.57864409]
[1765192534205,0.0004,92200.0,92199.0,0.56211409]
[1765192534358,0.0004,92200.0,92199.0,0.59572409]
[1765192534686,0.0004,92200.0,92199.0,0.61916409]
[1765192534891,0.00096281,92206.0,92205.0,0.21690797]
[1765192535096,0.00096281,92206.0,92205.0,0.24073797]
[1765192535303,0.00096281,92206.0,92205.0,0.3223896]
[1765192535499,0.00096281,92206.0,92205.0,0.26417797]
[1765192535716,0.00096281,92206.0,92205.0,0.28764797]
[1765192536522,0.00396281,92206.0,92205.0,0.28764797]
[1765192542650,0.00396281,92206.0,92205.0,0.24037797]
[1765192543054,0.00471448,92206.0,92205.0,0.24037797]
[1765192543417,0.04710734,92206.0,92205.0,0.23398797]
[1765192544031,0.04710734,92206.0,92205.0,0.21690797]
[1765192544234,0.04710734,92206.0,92205.0,0.22923797]
[1765192544433,0.04710734,92206.0,92205.0,0.21690797]
[1765192544637,0.02246734,92206.0,92205.0,0.21690797]
[1765192545292,0.00632734,92206.0,92205.0,0.21690797]
[1765192547255,0.04710734,92206.0,92205.0,0.03880918]
[1765192547458,0.04710734,92206.0,92203.0,0.01136]
[1765192547459,0.04710734,92206.0,92204.0,0.25571903]
[1765192547587,0.04078,92205.0,92204.0,0.03880918]
[1765192547786,0.04078,92205.0,92202.0,0.01084575]
[1765192547992,0.01614,92203.0,92202.0,0.25687633]
[1765192548196,0.01614,92203.0,92199.0,0.0108461]
[1765192548550,0.01614,92200.0,92199.0,0.22776376]
[1765192549136,0.04078,92200.0,92198.0,0.21692247]
[1765192549337,0.02464,92200.0,92199.0,0.24604169]
[1765192549550,0.001,92203.0,92201.0,0.21691638]
[1765192549732,0.001,92203.0,92202.0,0.21691503]
[1765192550431,0.02947,92203.0,92202.0,0.21691503]
[1765192550660,0.02847,92203.0,92202.0,0.21691503]
[1765192551378,0.05311,92203.0,92202.0,0.21691503]
[1765192551764,0.05411,92203.0,92202.0,0.21691503]
[1765192552324,0.05711,92203.0,92202.0,0.21691503]
[1765192553279,0.03247,92203.0,92202.0,0.21691503]
[1765192554684,0.05711,92203.0,92202.0,0.21691503]
[1765192558821,0.05777496,92203.0,92202.0,0.21691503]
[1765192562342,0.00466496,92203.0,92202.0,0.21691503]
[1765192563871,0.04429496,92203.0,92202.0,0.21691503]
[1765192564218,0.21691973,92200.0,92199.0,0.0291196]
[1765192564412,0.21691973,92200.0,92194.0,0.04965587]
[1765192564413,0.22776819,92199.0,92196.0,0.0291196]
[1765192564641,0.02603657,92195.0,92192.0,0.03880918]
[1765192564840,0.02603657,92195.0,92188.0,0.02910234]
[1765192564841,0.01084716,92190.0,92188.0,0.02910234]
[1765192565044,0.03767681,92193.0,92188.0,0.21694797]
[1765192565045,0.02683,92189.0,92188.0,0.21694797]
[1765192565535,0.05127,92189.0,92188.0,0.21694797]
[1765192566278,0.05127,92189.0,92184.0,0.01084786]
[1765192566279,0.02219599,92180.0,92176.0,0.02910234]
[1765192566460,0.01084845,92179.0,92174.0,0.01084904]
[1765192566593,0.02683,92175.0,92174.0,0.2278285]
[1765192566793,0.05127,92175.0,92174.0,0.2278285]
[1765192567448,0.05127,92175.0,92172.0,0.22783319]
[1765192567647,0.01519,92173.0,92172.0,0.22783319]
[1765192567801,0.01519,92173.0,92170.0,0.2278385]
[1765192568003,0.02683,92171.0,92170.0,0.22795523]
[1765192568435,0.05127,92171.0,92170.0,0.22795523]
[1765192568637,0.05127,92171.0,92170.0,0.00011673]
[1765192569054,0.09452996,92171.0,92170.0,0.00011673]
[1765192569868,0.05127,92171.0,92170.0,0.00011673]
[1765192570339,0.05327,92171.0,92170.0,0.00011673]
[1765192570541,0.05227,92171.0,92170.0,0.00011673]
[1765192570967,0.05527,92171.0,92170.0,0.00011673]
[1765192571163,0.05727,92171.0,92170.0,0.00011673]
[1765192571767,0.27425798,92171.0,92170.0,0.00011673]
[1765192572490,0.05727,92171.0,92170.0,0.00011673]
[1765192573083,0.03283,92171.0,92170.0,0.00011673]
[1765192573264,0.05543,92171.0,92170.0,0.00011673]
[1765192573755,0.05543,92171.0,92170.0,0.21710707]
[1765192573879,0.05343,92171.0,92170.0,0.21710707]
[1765192574277,0.04943,92171.0,92170.0,0.21710707]
[1765192574512,0.05043,92171.0,92170.0,0.21710707]
[1765192574738,0.05243,92171.0,92170.0,0.21710707]
[1765192577686,0.02983,92171.0,92170.0,0.21710707]
[1765192578496,0.05243,92171.0,92170.0,0.21710707]
[1765192579142,0.02983,92171.0,92170.0,0.21710707]
[1765192579777,0.05243,92171.0,92170.0,0.21710707]
[1765192580315,0.02983,92171.0,92170.0,0.21710707]
[1765192580451,0.01464,92171.0,92170.0,0.21710707]
[1765192581342,0.003,92171.0,92170.0,0.21710707]
[1765192582126,0.04064,92171.0,92170.0,0.21710707]
[1765192582320,0.03864,92171.0,92170.0,0.21710707]
[1765192583529,0.03964,92171.0,92170.0,0.21710707]
[1765192585672,0.03964,92171.0,92170.0,0.00011673]
[1765192585871,0.25824084,92171.0,92170.0,0.00011673]
[1765192586422,0.4258419,92171.0,92170.0,0.00011673]
[1765192586620,0.44803789,92171.0,92170.0,0.00011673]
[1765192586829,0.45888929,92171.0,92170.0,0.00011673]
[1765192587028,0.85888929,92171.0,92170.0,0.00011673]
[1765192587451,0.85788929,92171.0,92170.0,0.00011673]
[1765192587764,0.75881122,92171.0,92170.0,0.00011673]
[1765192587893,0.73661523,92171.0,92170.0,0.00011673]
[1765192588102,0.75881122,92171.0,92170.0,0.00011673]
[1765192589371,0.75781122,92171.0,92170.0,0.00011673]
[1765192589696,0.75881122,92171.0,92170.0,0.00011673]
[1765192589910,0.73661523,92171.0,92170.0,0.00011673]
[1765192590050,0.73561523,92171.0,92170.0,0.00011673]
[1765192590249,0.74574355,92171.0,92170.0,0.00011673]
[1765192590460,0.74874355,92171.0,92170.0,0.00011673]
[1765192592780,0.34874355,92171.0,92170.0,0.00011673]
[1765192595873,0.35540355,92171.0,92170.0,0.00011673]
[1765192596076,0.29288056,92171.0,92170.0,0.00011673]
[1765192596480,0.28988056,92171.0,92170.0,0.00011673]
[1765192597285,0.28388056,92171.0,92170.0,0.00011673]
[1765192597487,0.28688056,92171.0,92170.0,0.00011673]
[1765192597902,0.28888056,92171.0,92170.0,0.00011673]
[1765192598182,0.28891383,92171.0,92170.0,0.00011673]
[1765192599243,0.07192585,92171.0,92170.0,0.00011673]
[1765192599449,0.07192585,92171.0,92170.0,0.21710707]
[1765192600087,0.04932585,92171.0,92170.0,0.21710707]
[1765192600487,0.07192585,92171.0,92170.0,0.21710707]
[1765192600690,0.06892585,92171.0,92170.0,0.21710707]
[1765192600910,0.06692585,92171.0,92170.0,0.21710707]
[1765192601092,0.06892585,92171.0,92170.0,0.21710707]
[1765192601290,0.06731299,92171.0,92170.0,0.21710707]
[1765192601479,0.01882159,92171.0,92170.0,0.21710707]
[1765192601696,0.00866,92171.0,92170.0,0.25815707]
[1765192601961,0.00866,92171.0,92170.0,0.28725941]
[1765192602363,0.00866,92171.0,92170.0,0.28732161]
[1765192602567,0.00766,92171.0,92170.0,0.28732161]
[1765192602772,0.00766,92171.0,92170.0,0.28034907]
[1765192602989,0.00866,92171.0,92170.0,0.28034907]
[1765192603192,0.05721,92171.0,92170.0,0.21710707]
[1765192603400,0.03339,92171.0,92170.0,0.21710707]
[1765192603625,0.03539,92171.0,92170.0,0.21710707]
[1765192603829,0.0191,92171.0,92170.0,0.21710707]
[1765192604787,0.00766,92171.0,92170.0,0.21710707]
[1765192604989,0.00766,92171.0,92170.0,0.27792907]
[1765192606118,0.00766,92171.0,92170.0,0.25573707]
[1765192607569,0.00766,92171.0,92170.0,0.27792907]
[1765192607938,0.00766,92171.0,92170.0,0.25573707]
[1765192608138,0.00766,92171.0,92170.0,0.27792907]
[1765192609684,0.00766,92171.0,92170.0,0.25573707]
[1765192610366,0.00766,92171.0,92170.0,0.21710707]
[1765192610774,0.00766,92171.0,92170.0,0.25596563]
[1765192611362,0.00766,92171.0,92170.0,0.25162585]
[1765192612567,0.00766,92171.0,92170.0,0.29025585]
[1765192613428,0.00766,92171.0,92170.0,0.25139729]
[1765192614889,0.00766,92171.0,92170.0,0.21276729]
[1765192615984,0.0191,92171.0,92170.0,0.22988729]
[1765192616190,0.05721,92171.0,92170.0,0.22988729]
[1765192616401,0.05721,92171.0,92170.0,0.21276729]
[1765192616600,0.0191,92171.0,92170.0,0.21276729]
[1765192617232,0.00766,92171.0,92170.0,0.21276729]
[1765192618514,0.00766,92171.0,92170.0,0.25162585]
[1765192621818,0.00766,92171.0,92170.0,0.29025585]
[1765192622023,0.00766,92171.0,92170.0,0.31244785]
[1765192622462,0.00766,92171.0,92170.0,0.27358929]
[1765192623589,0.00766,92171.0,92170.0,0.21276729]
[1765192624389,0.00766,92171.0,92170.0,0.22804729]
[1765192624570,0.00766,92171.0,92170.0,0.25291729]
[1765192627622,0.00766,92171.0,92170.0,0.21276729]
[1765192629863,0.0474,92171.0,92170.0,0.21276729]
[1765192630585,0.0474,92171.0,92167.0,0.22784522]
[1765192630586,0.32766366,92171.0,92167.0,0.04976544]
[1765192630732,0.27712469,92171.0,92170.0,0.02919007]
[1765192631374,0.31586469,92171.0,92170.0,0.02919007]
[1765192631549,0.01084951,92170.0,92167.0,0.21699541]
[1765192631796,0.25326295,92170.0,92167.0,0.21699541]
[1765192632047,0.01593,92168.0,92167.0,0.21699541]
[1765192632355,0.01593,92168.0,92166.0,0.21699944]
[1765192632519,0.0405,92167.0,92166.0,0.21699976]
[1765192633234,0.21700211,92165.0,92164.0,0.02919007]
[1765192633565,0.25678096,92165.0,92164.0,0.02919007]
[1765192633699,0.02219599,92164.0,92163.0,0.2461947]
[1765192634036,0.02453,92164.0,92163.0,0.2461947]
[1765192634258,0.0405,92164.0,92163.0,0.21700463]
[1765192635224,0.0405,92164.0,92163.0,0.21700682]
[1765192635427,0.0405,92164.0,92162.0,0.01085045]
[1765192635629,0.0405,92164.0,92162.0,0.21700917]
[1765192635630,0.0405,92163.0,92162.0,0.21700917]
[1765192638228,0.01197,92164.0,92163.0,0.21700682]
[1765192638838,0.05247,92164.0,92163.0,0.21700682]
[1765192639041,0.02794,92164.0,92163.0,0.21700682]
[1765192639387,0.01197,92164.0,92163.0,0.21700682]
[1765192639586,0.01397,92164.0,92163.0,0.21700682]
[1765192639953,0.002,92164.0,92163.0,0.21700682]
[1765192641096,0.01797,92164.0,92163.0,0.21700682]
[1765192641302,0.0425,92164.0,92163.0,0.21700682]
[1765192645564,0.0425,92164.0,92161.0,0.01085057]
[1765192645772,0.01597,92162.0,92161.0,0.01085057]
[1765192646141,0.01597,92162.0,92161.0,0.22786145]
[1765192646340,0.0405,92162.0,92161.0,0.22786145]
[1765192648120,0.0425,92162.0,92161.0,0.22786145]
[1765192655313,0.0425,92162.0,92161.0,0.25705152]
[1765192656262,0.0425,92162.0,92161.0,0.02919007]
[1765192656575,0.25950917,92162.0,92160.0,0.02919007]
[1765192656780,0.02453,92161.0,92160.0,0.02919007]
[1765192657006,0.21701388,92160.0,92159.0,0.02919007]
[1765192657250,0.21702127,92157.0,92155.0,0.03891557]
[1765192657399,0.02453,92159.0,92157.0,0.01085104]
[1765192657594,0.02453,92159.0,92158.0,0.21701829]
[1765192658039,0.05254,92159.0,92158.0,0.21701829]
[1765192658281,0.05254,92159.0,92155.0,0.266791]
[1765192658282,0.06339081,92159.0,92155.0,0.266791]
[1765192658429,0.06339081,92159.0,92155.0,0.03991557]
[1765192658430,0.03538092,92158.0,92155.0,0.03991557]
[1765192658631,0.01597,92156.0,92155.0,0.03891557]
[1765192659033,0.01597,92156.0,92155.0,0.25594018]
[1765192659034,0.0405,92156.0,92155.0,0.25594018]
[1765192659232,0.0405,92156.0,92155.0,0.21702461]
[1765192660193,0.01204,92159.0,92158.0,0.21701859]
[1765192660804,0.05254,92159.0,92158.0,0.21701859]
[1765192661409,0.05254,92159.0,92158.0,0.25594792]
[1765192661793,0.05354,92159.0,92158.0,0.25594792]
[1765192662454,0.05454,92159.0,92158.0,0.25594792]
[1765192664407,0.03001,92159.0,92158.0,0.25594792]
[1765192665346,0.01404,92159.0,92158.0,0.21701859]
[1765192665753,0.002,92159.0,92158.0,0.21701859]
[1765192666193,0.002,92159.0,92158.0,0.23359859]
[1765192666364,0.002,92159.0,92158.0,0.25756859]
[1765192666568,0.002,92159.0,92158.0,0.29688059]
[1765192666727,0.001,92159.0,92158.0,0.35508875]
[1765192666929,0.00671484,92171.0,92170.0,0.21699034]
[1765192669418,0.00771484,92171.0,92170.0,0.21699034]
[1765192670623,0.02357484,92171.0,92170.0,0.21699034]
[1765192670820,0.00771484,92171.0,92170.0,0.21699034]
[1765192672330,0.00771484,92171.0,92170.0,0.25754034]
[1765192673006,0.00771484,92171.0,92170.0,0.27466034]
[1765192674461,0.00671484,92171.0,92170.0,0.27466034]
[1765192675623,0.00671484,92171.0,92170.0,0.27666034]
[1765192675842,0.00671484,92171.0,92170.0,0.29885234]
[1765192676233,0.00671484,92171.0,92170.0,0.27666034]
[1765192676970,0.00671484,92171.0,92170.0,0.29885234]
[1765192677412,0.00671484,92171.0,92170.0,0.27666034]
[1765192680206,0.00671484,92171.0,92170.0,0.23611034]
[1765192682930,0.00671484,92171.0,92170.0,0.26064034]
[1765192683333,0.00671484,92171.0,92170.0,0.27708034]
[1765192687700,0.00671484,92171.0,92170.0,0.23611034]
[1765192690649,0.00671484,92171.0,92170.0,0.27496355]
[1765192693100,0.00671484,92171.0,92170.0,0.23611034]
[1765192693505,0.00671484,92171.0,92170.0,0.27509034]
[1765192694386,0.00671484,92171.0,92170.0,0.29728234]
[1765192694564,0.00671484,92171.0,92170.0,0.27509034]
[1765192695278,0.00671484,92171.0,92170.0,0.29728234]
[1765192695703,0.00671484,92171.0,92170.0,0.28016234]
[1765192695907,0.00671484,92171.0,92170.0,0.29728234]
[1765192697618,0.00671484,92171.0,92170.0,0.30878234]
[1765192698202,0.00671484,92171.0,92170.0,0.3669905]
[1765192700318,0.00671484,92171.0,92170.0,0.30878234]
[1765192701361,0.00671484,92171.0,92170.0,0.28659034]
[1765192701567,0.00671484,92171.0,92170.0,0.30878234]
[1765192702075,0.00671484,92171.0,92170.0,0.28659034]
[1765192702633,0.00671484,92171.0,92170.0,0.30878234]
[1765192703084,0.00671484,92171.0,92170.0,0.28659034]
[1765192703645,0.00671484,92171.0,92170.0,0.30878234]
[1765192703846,0.00671484,92171.0,92170.0,0.26360034]
[1765192704056,0.00671484,92171.0,92170.0,0.24761034]
[1765192704849,0.00671484,92171.0,92170.0,0.26360034]
[1765192705073,0.00671484,92171.0,92170.0,0.28659034]
[1765192707835,0.00671484,92171.0,92170.0,0.63178234]
[1765192707990,0.00671484,92171.0,92170.0,0.64341234]
[1765192708802,0.00671484,92171.0,92170.0,0.64541234]
[1765192709202,0.00671484,92171.0,92170.0,0.62629234]
[1765192709540,0.00671484,92171.0,92170.0,0.64741234]
[1765192712159,0.00671484,92171.0,92170.0,0.63029234]
[1765192712362,0.00671484,92171.0,92170.0,0.64741234]
[1765192715419,0.00671484,92171.0,92170.0,0.62522034]
[1765192715628,0.00671484,92171.0,92170.0,0.70294412]
[1765192715936,0.00671484,92171.0,92170.0,0.62522034]
[1765192716336,0.00671484,92171.0,92170.0,0.61922034]
[1765192716534,0.00671484,92171.0,92170.0,0.62222034]
[1765192716842,0.00671484,92171.0,92170.0,0.62122034]
[1765192717044,0.00671484,92171.0,92170.0,0.64341234]
[1765192717262,0.00671484,92171.0,92170.0,0.64441234]
[1765192717613,0.00671484,92171.0,92170.0,0.62322034]
[1765192718037,0.00671484,92171.0,92170.0,0.64541234]
[1765192719544,0.00671484,92171.0,92170.0,0.62322034]
[1765192719965,0.00671484,92171.0,92170.0,0.64541234]
[1765192720159,0.00671484,92171.0,92170.0,0.62322034]
[1765192720389,0.00671484,92171.0,92170.0,0.64541234]
[1765192720586,0.00671484,92171.0,92170.0,0.62322034]
[1765192720750,0.00671484,92171.0,92170.0,0.64541234]
[1765192721595,0.00671484,92171.0,92170.0,0.62322034]
[1765192721769,0.00671484,92171.0,92170.0,0.64541234]